Department family,Entity,Date,Expense type,Expense area,Supplier,Transaction number,Amount
Department of Health,Leicestershire Partnership NHS Trust,01/12/23,Healthcare Services / Recharges from Non-NHS Bodies,Adult Eating Disorder Collaborative,PRIORY GROUP,301NOV23LEC,82420.48
Department of Health,Leicestershire Partnership NHS Trust,01/12/23,Payroll Deductions -Salary Sacrifice Cars Scheme,Balance Sheet Collection,TUSKER,84519,51065.46
Department of Health,Leicestershire Partnership NHS Trust,04/12/23,Nurse - Band 6 -Agency,AMH - Central Access Point,HCL WORKFORCE SOLUTIONS,HWSI0002002,7057.76
Department of Health,Leicestershire Partnership NHS Trust,04/12/23,Nurse - Band 6 -Agency,Adult City Central CMHT - St Peters,HCL WORKFORCE SOLUTIONS,HWSI0002002,1515.65
Department of Health,Leicestershire Partnership NHS Trust,04/12/23,Nurse - Band 6 -Agency,Adult County South Leicestershire CMHT,HCL WORKFORCE SOLUTIONS,HWSI0002002,4235.63
Department of Health,Leicestershire Partnership NHS Trust,04/12/23,Nurse - Band 7 - Agency,Adult County South Leicestershire CMHT,HCL WORKFORCE SOLUTIONS,HWSI0002002,1049.87
Department of Health,Leicestershire Partnership NHS Trust,04/12/23,Nurse - Band 6 -Agency,Adult County- East Leicester CMHT,HCL WORKFORCE SOLUTIONS,HWSI0002002,555.15
Department of Health,Leicestershire Partnership NHS Trust,04/12/23,Nurse - Band 6 -Agency,City West CMHT MHSOP,HCL WORKFORCE SOLUTIONS,HWSI0002002,4422.08
Department of Health,Leicestershire Partnership NHS Trust,04/12/23,Nurse - Band 6 -Agency,Crisis Resolution,HCL WORKFORCE SOLUTIONS,HWSI0002002,6030.45
Department of Health,Leicestershire Partnership NHS Trust,04/12/23,Nurse - Band 6 -Agency,Melton & Rutland CMHT MHSOP,HCL WORKFORCE SOLUTIONS,HWSI0002002,1433.33
Department of Health,Leicestershire Partnership NHS Trust,04/12/23,Nurse - Band 6 -Agency,Mental Health Liaison Team,HCL WORKFORCE SOLUTIONS,HWSI0002002,3795.43
Department of Health,Leicestershire Partnership NHS Trust,04/12/23,Nurse - Band 6 -Agency,AMH - Central Access Point,HCL NURSING,HNSI0001505,6965.44
Department of Health,Leicestershire Partnership NHS Trust,04/12/23,Nurse - Band 6 -Agency,Adult County North West Leicestershire CMHT,HCL NURSING,HNSI0001505,813.17
Department of Health,Leicestershire Partnership NHS Trust,04/12/23,NURSE - BAND 2 - AGENCY,Agnes Unit,HCL NURSING,HNSI0001505,8182.80
Department of Health,Leicestershire Partnership NHS Trust,04/12/23,NURSE - BAND 5 - AGENCY,Agnes Unit,HCL NURSING,HNSI0001505,21162.69
Department of Health,Leicestershire Partnership NHS Trust,04/12/23,Nurse - Band 7 - Agency,Agnes Unit,HCL NURSING,HNSI0001505,1573.85
Department of Health,Leicestershire Partnership NHS Trust,04/12/23,NURSE - BAND 2 - AGENCY,Ashby Ward (Bradgate Unit),HCL NURSING,HNSI0001505,2258.13
Department of Health,Leicestershire Partnership NHS Trust,04/12/23,NURSE - BAND 5 - AGENCY,Ashby Ward (Bradgate Unit),HCL NURSING,HNSI0001505,9198.84
Department of Health,Leicestershire Partnership NHS Trust,04/12/23,NURSE - BAND 5 - AGENCY,Aston Ward Bradgate Unit (Prev Welford),HCL NURSING,HNSI0001505,3611.04
Department of Health,Leicestershire Partnership NHS Trust,04/12/23,NURSE - BAND 2 - AGENCY,Beaumont Ward - Bradgate Unit,HCL NURSING,HNSI0001505,7744.35
Department of Health,Leicestershire Partnership NHS Trust,04/12/23,NURSE - BAND 2 - AGENCY,Belvoir Psychiatric Intensive Care Unit,HCL NURSING,HNSI0001505,4751.56
Department of Health,Leicestershire Partnership NHS Trust,04/12/23,NURSE - BAND 5 - AGENCY,Belvoir Psychiatric Intensive Care Unit,HCL NURSING,HNSI0001505,6481.78
Department of Health,Leicestershire Partnership NHS Trust,04/12/23,NURSE - BAND 2 - AGENCY,Bosworth Ward - Bradgate Unit,HCL NURSING,HNSI0001505,1080.55
Department of Health,Leicestershire Partnership NHS Trust,04/12/23,NURSE - BAND 5 - AGENCY,Bosworth Ward - Bradgate Unit,HCL NURSING,HNSI0001505,2270.94
Department of Health,Leicestershire Partnership NHS Trust,04/12/23,NURSE - BAND 2 - AGENCY,Cedar (Willows),HCL NURSING,HNSI0001505,764.44
Department of Health,Leicestershire Partnership NHS Trust,04/12/23,NURSE - BAND 5 - AGENCY,Cedar (Willows),HCL NURSING,HNSI0001505,1697.85
Department of Health,Leicestershire Partnership NHS Trust,04/12/23,Nurse - Band 6 -Agency,City West CMHT MHSOP,HCL NURSING,HNSI0001505,1055.74
Department of Health,Leicestershire Partnership NHS Trust,04/12/23,NURSE - BAND 2 - AGENCY,Coleman Ward,HCL NURSING,HNSI0001505,3020.09
Department of Health,Leicestershire Partnership NHS Trust,04/12/23,NURSE - BAND 5 - AGENCY,Coleman Ward,HCL NURSING,HNSI0001505,2741.12
Department of Health,Leicestershire Partnership NHS Trust,04/12/23,NURSE - BAND 5 - AGENCY,Crisis Resolution,HCL NURSING,HNSI0001505,880.95
Department of Health,Leicestershire Partnership NHS Trust,04/12/23,NURSE - BAND 2 - AGENCY,Griffin Ward (HPC),HCL NURSING,HNSI0001505,811.88
Department of Health,Leicestershire Partnership NHS Trust,04/12/23,NURSE - BAND 5 - AGENCY,Griffin Ward (HPC),HCL NURSING,HNSI0001505,7191.84
Department of Health,Leicestershire Partnership NHS Trust,04/12/23,NURSE - BAND 2 - AGENCY,Gwendolen Ward,HCL NURSING,HNSI0001505,1692.21
Department of Health,Leicestershire Partnership NHS Trust,04/12/23,NURSE - BAND 5 - AGENCY,Gwendolen Ward,HCL NURSING,HNSI0001505,3419.26
Department of Health,Leicestershire Partnership NHS Trust,04/12/23,NURSE - BAND 2 - AGENCY,Heather Ward,HCL NURSING,HNSI0001505,830.71
Department of Health,Leicestershire Partnership NHS Trust,04/12/23,NURSE - BAND 5 - AGENCY,Heather Ward,HCL NURSING,HNSI0001505,7343.49
Department of Health,Leicestershire Partnership NHS Trust,04/12/23,NURSE - BAND 2 - AGENCY,Kirby Ward,HCL NURSING,HNSI0001505,205.84
Department of Health,Leicestershire Partnership NHS Trust,04/12/23,NURSE - BAND 5 - AGENCY,Kirby Ward,HCL NURSING,HNSI0001505,1790.71
Department of Health,Leicestershire Partnership NHS Trust,04/12/23,NURSE - BAND 2 - AGENCY,Maple Ward,HCL NURSING,HNSI0001505,244.00
Department of Health,Leicestershire Partnership NHS Trust,04/12/23,NURSE - BAND 5 - AGENCY,Maple Ward,HCL NURSING,HNSI0001505,493.45
Department of Health,Leicestershire Partnership NHS Trust,04/12/23,NURSE - BAND 2 - AGENCY,Mill Lodge,HCL NURSING,HNSI0001505,3567.63
Department of Health,Leicestershire Partnership NHS Trust,04/12/23,NURSE - BAND 5 - AGENCY,Mill Lodge,HCL NURSING,HNSI0001505,1988.81
Department of Health,Leicestershire Partnership NHS Trust,04/12/23,NURSE - BAND 2 - AGENCY,Phoenix Ward (HPC),HCL NURSING,HNSI0001505,1273.21
Department of Health,Leicestershire Partnership NHS Trust,04/12/23,NURSE - BAND 5 - AGENCY,Phoenix Ward (HPC),HCL NURSING,HNSI0001505,4015.93
Department of Health,Leicestershire Partnership NHS Trust,04/12/23,NURSE - BAND 2 - AGENCY,Place Of Safety Assessment Unit,HCL NURSING,HNSI0001505,852.02
Department of Health,Leicestershire Partnership NHS Trust,04/12/23,NURSE - BAND 5 - AGENCY,Place Of Safety Assessment Unit,HCL NURSING,HNSI0001505,2635.33
Department of Health,Leicestershire Partnership NHS Trust,04/12/23,NURSE - BAND 5 - AGENCY,Sycamore (Willows),HCL NURSING,HNSI0001505,1102.19
Department of Health,Leicestershire Partnership NHS Trust,04/12/23,NURSE - BAND 2 - AGENCY,Thornton Ward - Bradgate Unit,HCL NURSING,HNSI0001505,205.84
Department of Health,Leicestershire Partnership NHS Trust,04/12/23,NURSE - BAND 5 - AGENCY,Thornton Ward - Bradgate Unit,HCL NURSING,HNSI0001505,2762.60
Department of Health,Leicestershire Partnership NHS Trust,04/12/23,NURSE - BAND 2 - AGENCY,CAMHS Inpatient Service,HCL NURSING,HNSI0001507,8732.09
Department of Health,Leicestershire Partnership NHS Trust,04/12/23,NURSE - BAND 5 - AGENCY,CAMHS Inpatient Service,HCL NURSING,HNSI0001507,7217.58
Department of Health,Leicestershire Partnership NHS Trust,04/12/23,Nurse - Band 7 - Agency,CAMHS Waiting List Monies,HCL NURSING,HNSI0001507,2716.58
Department of Health,Leicestershire Partnership NHS Trust,04/12/23,Nurse - Band 7 - Agency,Crisis Response and Home Treatment,HCL NURSING,HNSI0001507,2752.25
Department of Health,Leicestershire Partnership NHS Trust,04/12/23,NURSE - BAND 2 - AGENCY,Welford Ward (Prev Langley),HCL NURSING,HNSI0001507,286.46
Department of Health,Leicestershire Partnership NHS Trust,04/12/23,NURSE - BAND 5 - AGENCY,Welford Ward (Prev Langley),HCL NURSING,HNSI0001507,1788.07
Department of Health,Leicestershire Partnership NHS Trust,04/12/23,Nurse - Band 6 -Agency,CAMHS Waiting List Monies,HCL WORKFORCE SOLUTIONS,HWSI0002004,14061.93
Department of Health,Leicestershire Partnership NHS Trust,04/12/23,Nurse - Band 7 - Agency,City West CMHT MHSOP,HCL WORKFORCE SOLUTIONS,HWSI0002004,1368.75
Department of Health,Leicestershire Partnership NHS Trust,04/12/23,Nurse - Band 6 -Agency,Crisis Response and Home Treatment,HCL WORKFORCE SOLUTIONS,HWSI0002004,8931.13
Department of Health,Leicestershire Partnership NHS Trust,04/12/23,Unitary Payment,"The Agnes Unit (AKA Assessment and Treatment Centre) (P85, LPT)",ARDEN PARTNERSHIP (LEICESTER),SI0139,144399.21
Department of Health,Leicestershire Partnership NHS Trust,04/12/23,Crs_NHS_LT1y -Resus Inventory Supplied.,Balance Sheet Collection,SUPPLY CHAIN CO LTD,1124236440,31209.27
Department of Health,Leicestershire Partnership NHS Trust,04/12/23,Lease Rents (IFRS16),"St Peters Health Center (Part 1st and 2nd floors) (P66, LPT)",LEICESTER LIFT CO,LEP1-SI1455,34244.84
Department of Health,Leicestershire Partnership NHS Trust,05/12/23,Course / Training Expenses,HIS,THE KNOWLEDGE ACADEMY LTD,478170,50000.00
Department of Health,Leicestershire Partnership NHS Trust,05/12/23,Nurse - Band 6 -Agency,CAMHS Waiting List Monies,HCL WORKFORCE SOLUTIONS,HWSI0002007,12646.42
Department of Health,Leicestershire Partnership NHS Trust,05/12/23,Nurse - Band 7 - Agency,City West CMHT MHSOP,HCL WORKFORCE SOLUTIONS,HWSI0002007,1368.75
Department of Health,Leicestershire Partnership NHS Trust,05/12/23,Nurse - Band 6 -Agency,Crisis Response and Home Treatment,HCL WORKFORCE SOLUTIONS,HWSI0002007,7447.25
Department of Health,Leicestershire Partnership NHS Trust,05/12/23,NURSE - BAND 2 - AGENCY,CAMHS Inpatient Service,HCL NURSING,HNSI0001511,13311.37
Department of Health,Leicestershire Partnership NHS Trust,05/12/23,NURSE - BAND 5 - AGENCY,CAMHS Inpatient Service,HCL NURSING,HNSI0001511,7826.43
Department of Health,Leicestershire Partnership NHS Trust,05/12/23,Nurse - Band 7 - Agency,CAMHS Waiting List Monies,HCL NURSING,HNSI0001511,1273.20
Department of Health,Leicestershire Partnership NHS Trust,05/12/23,Nurse - Band 7 - Agency,Crisis Response and Home Treatment,HCL NURSING,HNSI0001511,2556.90
Department of Health,Leicestershire Partnership NHS Trust,05/12/23,NURSE - BAND 2 - AGENCY,Welford Ward (Prev Langley),HCL NURSING,HNSI0001511,218.56
Department of Health,Leicestershire Partnership NHS Trust,05/12/23,NURSE - BAND 5 - AGENCY,Welford Ward (Prev Langley),HCL NURSING,HNSI0001511,4768.02
Department of Health,Leicestershire Partnership NHS Trust,05/12/23,Nurse - Band 6 -Agency,AMH - Central Access Point,HCL NURSING,HNSI0001509,3138.33
Department of Health,Leicestershire Partnership NHS Trust,05/12/23,Nurse - Band 6 -Agency,Adult County North West Leicestershire CMHT,HCL NURSING,HNSI0001509,813.17
Department of Health,Leicestershire Partnership NHS Trust,05/12/23,NURSE - BAND 2 - AGENCY,Agnes Unit,HCL NURSING,HNSI0001509,9751.24
Department of Health,Leicestershire Partnership NHS Trust,05/12/23,NURSE - BAND 5 - AGENCY,Agnes Unit,HCL NURSING,HNSI0001509,17873.67
Department of Health,Leicestershire Partnership NHS Trust,05/12/23,Nurse - Band 7 - Agency,Agnes Unit,HCL NURSING,HNSI0001509,1573.86
Department of Health,Leicestershire Partnership NHS Trust,05/12/23,NURSE - BAND 2 - AGENCY,Ashby Ward (Bradgate Unit),HCL NURSING,HNSI0001509,1116.45
Department of Health,Leicestershire Partnership NHS Trust,05/12/23,NURSE - BAND 5 - AGENCY,Ashby Ward (Bradgate Unit),HCL NURSING,HNSI0001509,9663.82
Department of Health,Leicestershire Partnership NHS Trust,05/12/23,NURSE - BAND 2 - AGENCY,Aston Ward Bradgate Unit (Prev Welford),HCL NURSING,HNSI0001509,1107.39
Department of Health,Leicestershire Partnership NHS Trust,05/12/23,NURSE - BAND 5 - AGENCY,Aston Ward Bradgate Unit (Prev Welford),HCL NURSING,HNSI0001509,6175.76
Department of Health,Leicestershire Partnership NHS Trust,05/12/23,NURSE - BAND 2 - AGENCY,Beaumont Ward - Bradgate Unit,HCL NURSING,HNSI0001509,2827.58
Department of Health,Leicestershire Partnership NHS Trust,05/12/23,NURSE - BAND 5 - AGENCY,Beaumont Ward - Bradgate Unit,HCL NURSING,HNSI0001509,3127.54
Department of Health,Leicestershire Partnership NHS Trust,05/12/23,NURSE - BAND 2 - AGENCY,Belvoir Psychiatric Intensive Care Unit,HCL NURSING,HNSI0001509,2649.61
Department of Health,Leicestershire Partnership NHS Trust,05/12/23,NURSE - BAND 5 - AGENCY,Belvoir Psychiatric Intensive Care Unit,HCL NURSING,HNSI0001509,3961.50
Department of Health,Leicestershire Partnership NHS Trust,05/12/23,NURSE - BAND 2 - AGENCY,Bosworth Ward - Bradgate Unit,HCL NURSING,HNSI0001509,3852.37
Department of Health,Leicestershire Partnership NHS Trust,05/12/23,NURSE - BAND 5 - AGENCY,Bosworth Ward - Bradgate Unit,HCL NURSING,HNSI0001509,2346.46
Department of Health,Leicestershire Partnership NHS Trust,05/12/23,NURSE - BAND 2 - AGENCY,Cedar (Willows),HCL NURSING,HNSI0001509,400.20
Department of Health,Leicestershire Partnership NHS Trust,05/12/23,NURSE - BAND 5 - AGENCY,Cedar (Willows),HCL NURSING,HNSI0001509,1298.03
Department of Health,Leicestershire Partnership NHS Trust,05/12/23,Nurse - Band 6 -Agency,City West CMHT MHSOP,HCL NURSING,HNSI0001509,1046.25
Department of Health,Leicestershire Partnership NHS Trust,05/12/23,NURSE - BAND 2 - AGENCY,Coleman Ward,HCL NURSING,HNSI0001509,3016.19
Department of Health,Leicestershire Partnership NHS Trust,05/12/23,NURSE - BAND 5 - AGENCY,Coleman Ward,HCL NURSING,HNSI0001509,2893.75
Department of Health,Leicestershire Partnership NHS Trust,05/12/23,NURSE - BAND 5 - AGENCY,Crisis Resolution,HCL NURSING,HNSI0001509,687.13
Department of Health,Leicestershire Partnership NHS Trust,05/12/23,NURSE - BAND 2 - AGENCY,Griffin Ward (HPC),HCL NURSING,HNSI0001509,848.65
Department of Health,Leicestershire Partnership NHS Trust,05/12/23,NURSE - BAND 5 - AGENCY,Griffin Ward (HPC),HCL NURSING,HNSI0001509,8355.23
Department of Health,Leicestershire Partnership NHS Trust,05/12/23,NURSE - BAND 2 - AGENCY,Gwendolen Ward,HCL NURSING,HNSI0001509,1209.57
Department of Health,Leicestershire Partnership NHS Trust,05/12/23,NURSE - BAND 5 - AGENCY,Gwendolen Ward,HCL NURSING,HNSI0001509,1340.34
Department of Health,Leicestershire Partnership NHS Trust,05/12/23,NURSE - BAND 2 - AGENCY,Heather Ward,HCL NURSING,HNSI0001509,1753.66
Department of Health,Leicestershire Partnership NHS Trust,05/12/23,NURSE - BAND 5 - AGENCY,Heather Ward,HCL NURSING,HNSI0001509,4363.36
Department of Health,Leicestershire Partnership NHS Trust,05/12/23,NURSE - BAND 2 - AGENCY,Kirby Ward,HCL NURSING,HNSI0001509,380.02
Department of Health,Leicestershire Partnership NHS Trust,05/12/23,NURSE - BAND 5 - AGENCY,Kirby Ward,HCL NURSING,HNSI0001509,1425.63
Department of Health,Leicestershire Partnership NHS Trust,05/12/23,NURSE - BAND 5 - AGENCY,Maple Ward,HCL NURSING,HNSI0001509,493.45
Department of Health,Leicestershire Partnership NHS Trust,05/12/23,NURSE - BAND 2 - AGENCY,Mill Lodge,HCL NURSING,HNSI0001509,3243.14
Department of Health,Leicestershire Partnership NHS Trust,05/12/23,NURSE - BAND 5 - AGENCY,Mill Lodge,HCL NURSING,HNSI0001509,1485.48
Department of Health,Leicestershire Partnership NHS Trust,05/12/23,NURSE - BAND 2 - AGENCY,Phoenix Ward (HPC),HCL NURSING,HNSI0001509,1912.45
Department of Health,Leicestershire Partnership NHS Trust,05/12/23,NURSE - BAND 5 - AGENCY,Phoenix Ward (HPC),HCL NURSING,HNSI0001509,2484.71
Department of Health,Leicestershire Partnership NHS Trust,05/12/23,NURSE - BAND 2 - AGENCY,Place Of Safety Assessment Unit,HCL NURSING,HNSI0001509,909.66
Department of Health,Leicestershire Partnership NHS Trust,05/12/23,NURSE - BAND 5 - AGENCY,Place Of Safety Assessment Unit,HCL NURSING,HNSI0001509,2104.15
Department of Health,Leicestershire Partnership NHS Trust,05/12/23,NURSE - BAND 5 - AGENCY,Stewart House,HCL NURSING,HNSI0001509,437.47
Department of Health,Leicestershire Partnership NHS Trust,05/12/23,NURSE - BAND 2 - AGENCY,Sycamore (Willows),HCL NURSING,HNSI0001509,783.73
Department of Health,Leicestershire Partnership NHS Trust,05/12/23,NURSE - BAND 5 - AGENCY,Sycamore (Willows),HCL NURSING,HNSI0001509,2303.30
Department of Health,Leicestershire Partnership NHS Trust,05/12/23,NURSE - BAND 2 - AGENCY,Thornton Ward - Bradgate Unit,HCL NURSING,HNSI0001509,449.43
Department of Health,Leicestershire Partnership NHS Trust,05/12/23,NURSE - BAND 5 - AGENCY,Thornton Ward - Bradgate Unit,HCL NURSING,HNSI0001509,3230.25
Department of Health,Leicestershire Partnership NHS Trust,05/12/23,Nurse - Band 6 -Agency,AMH - Central Access Point,HCL WORKFORCE SOLUTIONS,HWSI0002005,6566.47
Department of Health,Leicestershire Partnership NHS Trust,05/12/23,Nurse - Band 6 -Agency,Adult City Central CMHT - St Peters,HCL WORKFORCE SOLUTIONS,HWSI0002005,1479.54
Department of Health,Leicestershire Partnership NHS Trust,05/12/23,Nurse - Band 6 -Agency,Adult County South Leicestershire CMHT,HCL WORKFORCE SOLUTIONS,HWSI0002005,3551.80
Department of Health,Leicestershire Partnership NHS Trust,05/12/23,Nurse - Band 6 -Agency,Adult County- East Leicester CMHT,HCL WORKFORCE SOLUTIONS,HWSI0002005,832.73
Department of Health,Leicestershire Partnership NHS Trust,05/12/23,Nurse - Band 6 -Agency,Crisis Resolution,HCL WORKFORCE SOLUTIONS,HWSI0002005,6178.74
Department of Health,Leicestershire Partnership NHS Trust,05/12/23,Nurse - Band 6 -Agency,Melton & Rutland CMHT MHSOP,HCL WORKFORCE SOLUTIONS,HWSI0002005,1387.89
Department of Health,Leicestershire Partnership NHS Trust,05/12/23,Nurse - Band 6 -Agency,Mental Health Liaison Team,HCL WORKFORCE SOLUTIONS,HWSI0002005,1959.53
Department of Health,Leicestershire Partnership NHS Trust,05/12/23,Lease Rents (IFRS16),Meridian (EFM Base),TRUSTEES OF WATER ROSE RETIRE FUND,009,30000.00
Department of Health,Leicestershire Partnership NHS Trust,05/12/23,Services / Recharges from NHS Trusts,Inter Unit I & E Distribution,UHL NHS TRUST (RWE),L0276531,62340.00
Department of Health,Leicestershire Partnership NHS Trust,05/12/23,Nurse - Band 6 -Agency,AMH - Central Access Point,HCL WORKFORCE SOLUTIONS,HWSI0002019,7777.13
Department of Health,Leicestershire Partnership NHS Trust,05/12/23,Nurse - Band 6 -Agency,Adult County South Leicestershire CMHT,HCL WORKFORCE SOLUTIONS,HWSI0002019,1951.65
Department of Health,Leicestershire Partnership NHS Trust,05/12/23,Nurse - Band 7 - Agency,Adult County South Leicestershire CMHT,HCL WORKFORCE SOLUTIONS,HWSI0002019,1049.87
Department of Health,Leicestershire Partnership NHS Trust,05/12/23,Nurse - Band 6 -Agency,Adult County- East Leicester CMHT,HCL WORKFORCE SOLUTIONS,HWSI0002019,832.73
Department of Health,Leicestershire Partnership NHS Trust,05/12/23,Nurse - Band 6 -Agency,Crisis Resolution,HCL WORKFORCE SOLUTIONS,HWSI0002019,9167.43
Department of Health,Leicestershire Partnership NHS Trust,05/12/23,Nurse - Band 6 -Agency,Melton & Rutland CMHT MHSOP,HCL WORKFORCE SOLUTIONS,HWSI0002019,1461.05
Department of Health,Leicestershire Partnership NHS Trust,05/12/23,Nurse - Band 6 -Agency,Mental Health Liaison Team,HCL WORKFORCE SOLUTIONS,HWSI0002019,2410.97
Department of Health,Leicestershire Partnership NHS Trust,05/12/23,Nurse - Band 6 -Agency,AMH - Central Access Point,HCL NURSING,HNSI0001513,2614.48
Department of Health,Leicestershire Partnership NHS Trust,05/12/23,Nurse - Band 6 -Agency,Adult County North West Leicestershire CMHT,HCL NURSING,HNSI0001513,813.17
Department of Health,Leicestershire Partnership NHS Trust,05/12/23,NURSE - BAND 2 - AGENCY,Agnes Unit,HCL NURSING,HNSI0001513,7509.72
Department of Health,Leicestershire Partnership NHS Trust,05/12/23,NURSE - BAND 5 - AGENCY,Agnes Unit,HCL NURSING,HNSI0001513,20859.97
Department of Health,Leicestershire Partnership NHS Trust,05/12/23,Nurse - Band 7 - Agency,Agnes Unit,HCL NURSING,HNSI0001513,1573.86
Department of Health,Leicestershire Partnership NHS Trust,05/12/23,NURSE - BAND 2 - AGENCY,Ashby Ward (Bradgate Unit),HCL NURSING,HNSI0001513,1518.29
Department of Health,Leicestershire Partnership NHS Trust,05/12/23,NURSE - BAND 5 - AGENCY,Ashby Ward (Bradgate Unit),HCL NURSING,HNSI0001513,9794.35
Department of Health,Leicestershire Partnership NHS Trust,05/12/23,NURSE - BAND 2 - AGENCY,Aston Ward Bradgate Unit (Prev Welford),HCL NURSING,HNSI0001513,1076.45
Department of Health,Leicestershire Partnership NHS Trust,05/12/23,NURSE - BAND 5 - AGENCY,Aston Ward Bradgate Unit (Prev Welford),HCL NURSING,HNSI0001513,1387.73
Department of Health,Leicestershire Partnership NHS Trust,05/12/23,NURSE - BAND 2 - AGENCY,Beaumont Ward - Bradgate Unit,HCL NURSING,HNSI0001513,1119.25
Department of Health,Leicestershire Partnership NHS Trust,05/12/23,NURSE - BAND 5 - AGENCY,Beaumont Ward - Bradgate Unit,HCL NURSING,HNSI0001513,4451.61
Department of Health,Leicestershire Partnership NHS Trust,05/12/23,NURSE - BAND 2 - AGENCY,Belvoir Psychiatric Intensive Care Unit,HCL NURSING,HNSI0001513,912.96
Department of Health,Leicestershire Partnership NHS Trust,05/12/23,NURSE - BAND 5 - AGENCY,Belvoir Psychiatric Intensive Care Unit,HCL NURSING,HNSI0001513,2299.33
Department of Health,Leicestershire Partnership NHS Trust,05/12/23,NURSE - BAND 2 - AGENCY,Bosworth Ward - Bradgate Unit,HCL NURSING,HNSI0001513,4188.79
Department of Health,Leicestershire Partnership NHS Trust,05/12/23,NURSE - BAND 5 - AGENCY,Bosworth Ward - Bradgate Unit,HCL NURSING,HNSI0001513,502.45
Department of Health,Leicestershire Partnership NHS Trust,05/12/23,NURSE - BAND 2 - AGENCY,Cedar (Willows),HCL NURSING,HNSI0001513,205.84
Department of Health,Leicestershire Partnership NHS Trust,05/12/23,NURSE - BAND 5 - AGENCY,Cedar (Willows),HCL NURSING,HNSI0001513,1466.99
Department of Health,Leicestershire Partnership NHS Trust,05/12/23,NURSE - BAND 2 - AGENCY,Coleman Ward,HCL NURSING,HNSI0001513,907.14
Department of Health,Leicestershire Partnership NHS Trust,05/12/23,NURSE - BAND 5 - AGENCY,Coleman Ward,HCL NURSING,HNSI0001513,2739.16
Department of Health,Leicestershire Partnership NHS Trust,05/12/23,NURSE - BAND 5 - AGENCY,Crisis Resolution,HCL NURSING,HNSI0001513,246.66
Department of Health,Leicestershire Partnership NHS Trust,05/12/23,NURSE - BAND 2 - AGENCY,Griffin Ward (HPC),HCL NURSING,HNSI0001513,205.84
Department of Health,Leicestershire Partnership NHS Trust,05/12/23,NURSE - BAND 5 - AGENCY,Griffin Ward (HPC),HCL NURSING,HNSI0001513,10156.17
Department of Health,Leicestershire Partnership NHS Trust,05/12/23,NURSE - BAND 2 - AGENCY,Gwendolen Ward,HCL NURSING,HNSI0001513,1967.61
Department of Health,Leicestershire Partnership NHS Trust,05/12/23,NURSE - BAND 5 - AGENCY,Gwendolen Ward,HCL NURSING,HNSI0001513,1279.90
Department of Health,Leicestershire Partnership NHS Trust,05/12/23,NURSE - BAND 2 - AGENCY,Heather Ward,HCL NURSING,HNSI0001513,488.00
Department of Health,Leicestershire Partnership NHS Trust,05/12/23,NURSE - BAND 5 - AGENCY,Heather Ward,HCL NURSING,HNSI0001513,9236.11
Department of Health,Leicestershire Partnership NHS Trust,05/12/23,NURSE - BAND 2 - AGENCY,Kirby Ward,HCL NURSING,HNSI0001513,519.82
Department of Health,Leicestershire Partnership NHS Trust,05/12/23,NURSE - BAND 5 - AGENCY,Kirby Ward,HCL NURSING,HNSI0001513,1427.71
Department of Health,Leicestershire Partnership NHS Trust,05/12/23,NURSE - BAND 2 - AGENCY,Maple Ward,HCL NURSING,HNSI0001513,606.04
Department of Health,Leicestershire Partnership NHS Trust,05/12/23,NURSE - BAND 5 - AGENCY,Maple Ward,HCL NURSING,HNSI0001513,976.78
Department of Health,Leicestershire Partnership NHS Trust,05/12/23,NURSE - BAND 2 - AGENCY,Mill Lodge,HCL NURSING,HNSI0001513,3311.28
Department of Health,Leicestershire Partnership NHS Trust,05/12/23,NURSE - BAND 5 - AGENCY,Mill Lodge,HCL NURSING,HNSI0001513,1531.33
Department of Health,Leicestershire Partnership NHS Trust,05/12/23,NURSE - BAND 5 - AGENCY,Phoenix Ward (HPC),HCL NURSING,HNSI0001513,1504.36
Department of Health,Leicestershire Partnership NHS Trust,05/12/23,NURSE - BAND 5 - AGENCY,Place Of Safety Assessment Unit,HCL NURSING,HNSI0001513,2652.78
Department of Health,Leicestershire Partnership NHS Trust,05/12/23,NURSE - BAND 2 - AGENCY,Stewart House,HCL NURSING,HNSI0001513,205.84
Department of Health,Leicestershire Partnership NHS Trust,05/12/23,NURSE - BAND 5 - AGENCY,Stewart House,HCL NURSING,HNSI0001513,394.58
Department of Health,Leicestershire Partnership NHS Trust,05/12/23,NURSE - BAND 2 - AGENCY,Sycamore (Willows),HCL NURSING,HNSI0001513,664.39
Department of Health,Leicestershire Partnership NHS Trust,05/12/23,NURSE - BAND 5 - AGENCY,Sycamore (Willows),HCL NURSING,HNSI0001513,3047.63
Department of Health,Leicestershire Partnership NHS Trust,05/12/23,NURSE - BAND 2 - AGENCY,Thornton Ward - Bradgate Unit,HCL NURSING,HNSI0001513,419.02
Department of Health,Leicestershire Partnership NHS Trust,05/12/23,NURSE - BAND 5 - AGENCY,Thornton Ward - Bradgate Unit,HCL NURSING,HNSI0001513,4844.80
Department of Health,Leicestershire Partnership NHS Trust,05/12/23,NURSE - BAND 2 - AGENCY,Urgent Care Hub,HCL NURSING,HNSI0001513,187.71
Department of Health,Leicestershire Partnership NHS Trust,05/12/23,Nurse - Band 6 -Agency,CAMHS Waiting List Monies,HCL WORKFORCE SOLUTIONS,HWSI0002021,12928.84
Department of Health,Leicestershire Partnership NHS Trust,05/12/23,Nurse - Band 7 - Agency,City West CMHT MHSOP,HCL WORKFORCE SOLUTIONS,HWSI0002021,1149.75
Department of Health,Leicestershire Partnership NHS Trust,05/12/23,Nurse - Band 6 -Agency,Crisis Response and Home Treatment,HCL WORKFORCE SOLUTIONS,HWSI0002021,10905.28
Department of Health,Leicestershire Partnership NHS Trust,05/12/23,NURSE - BAND 2 - AGENCY,CAMHS Inpatient Service,HCL NURSING,HNSI0001515,8726.64
Department of Health,Leicestershire Partnership NHS Trust,05/12/23,NURSE - BAND 5 - AGENCY,CAMHS Inpatient Service,HCL NURSING,HNSI0001515,6909.04
Department of Health,Leicestershire Partnership NHS Trust,05/12/23,Nurse - Band 7 - Agency,CAMHS Waiting List Monies,HCL NURSING,HNSI0001515,4160.39
Department of Health,Leicestershire Partnership NHS Trust,05/12/23,Nurse - Band 7 - Agency,Crisis Response and Home Treatment,HCL NURSING,HNSI0001515,2752.25
Department of Health,Leicestershire Partnership NHS Trust,05/12/23,NURSE - BAND 2 - AGENCY,Welford Ward (Prev Langley),HCL NURSING,HNSI0001515,787.66
Department of Health,Leicestershire Partnership NHS Trust,05/12/23,NURSE - BAND 5 - AGENCY,Welford Ward (Prev Langley),HCL NURSING,HNSI0001515,3706.42
Department of Health,Leicestershire Partnership NHS Trust,05/12/23,Medical Equipment Repairs / Maintenance,Community Health Services Management,SPIRIT DIGITAL LTD,SIN231205SDI00074,43740.00
Department of Health,Leicestershire Partnership NHS Trust,06/12/23,WIP Project Not in BS - Buildings excl Dwellings,Work in Progress,TILBURY DOUGLAS CONSTRUCTION LTD,23120025,256948.13
Department of Health,Leicestershire Partnership NHS Trust,07/12/23,Other Non-Medical Supplies & Services,Bradgate Unit Site Services,BLABY DISTRICT COUNCIL,H0014394,120000.00
Department of Health,Leicestershire Partnership NHS Trust,07/12/23,Healthcare Services / Recharges from Non-NHS Bodies,Adult Eating Disorder Collaborative,ELLERN MEDE MOORGATE,OTM0818,36000.00
Department of Health,Leicestershire Partnership NHS Trust,07/12/23,NURSE - BAND 2 - AGENCY,Beechwood Ward,HCL NURSING,HNSI0001506,8931.32
Department of Health,Leicestershire Partnership NHS Trust,07/12/23,NURSE - BAND 5 - AGENCY,Beechwood Ward,HCL NURSING,HNSI0001506,3058.95
Department of Health,Leicestershire Partnership NHS Trust,07/12/23,NURSE - BAND 5 - AGENCY,City Planned Care - East,HCL NURSING,HNSI0001506,26612.22
Department of Health,Leicestershire Partnership NHS Trust,07/12/23,NURSE - BAND 5 - AGENCY,City Planned Care - West,HCL NURSING,HNSI0001506,33956.93
Department of Health,Leicestershire Partnership NHS Trust,07/12/23,NURSE - BAND 2 - AGENCY,Clarendon Ward,HCL NURSING,HNSI0001506,5215.53
Department of Health,Leicestershire Partnership NHS Trust,07/12/23,NURSE - BAND 5 - AGENCY,Clarendon Ward,HCL NURSING,HNSI0001506,2153.06
Department of Health,Leicestershire Partnership NHS Trust,07/12/23,NURSE - BAND 2 - AGENCY,Coalville Snibston Ward,HCL NURSING,HNSI0001506,3602.06
Department of Health,Leicestershire Partnership NHS Trust,07/12/23,NURSE - BAND 5 - AGENCY,Coalville Snibston Ward,HCL NURSING,HNSI0001506,2736.39
Department of Health,Leicestershire Partnership NHS Trust,07/12/23,NURSE - BAND 2 - AGENCY,Coalville Ward 2,HCL NURSING,HNSI0001506,4372.52
Department of Health,Leicestershire Partnership NHS Trust,07/12/23,NURSE - BAND 5 - AGENCY,Coalville Ward 2,HCL NURSING,HNSI0001506,1671.18
Department of Health,Leicestershire Partnership NHS Trust,07/12/23,NURSE - BAND 2 - AGENCY,Dalgliesh Ward,HCL NURSING,HNSI0001506,7598.26
Department of Health,Leicestershire Partnership NHS Trust,07/12/23,NURSE - BAND 5 - AGENCY,Dalgliesh Ward,HCL NURSING,HNSI0001506,4492.61
Department of Health,Leicestershire Partnership NHS Trust,07/12/23,NURSE - BAND 5 - AGENCY,"East Planned Care - Melton,Syston,Rutland",HCL NURSING,HNSI0001506,4192.43
Department of Health,Leicestershire Partnership NHS Trust,07/12/23,NURSE - BAND 5 - AGENCY,"East Planned Care - Oadby,Wigston & Harborough",HCL NURSING,HNSI0001506,3585.44
Department of Health,Leicestershire Partnership NHS Trust,07/12/23,NURSE - BAND 2 - AGENCY,H&B Comm Hosp East Ward,HCL NURSING,HNSI0001506,5752.55
Department of Health,Leicestershire Partnership NHS Trust,07/12/23,NURSE - BAND 5 - AGENCY,H&B Comm Hosp East Ward,HCL NURSING,HNSI0001506,2537.26
Department of Health,Leicestershire Partnership NHS Trust,07/12/23,NURSE - BAND 2 - AGENCY,H&B Comm Hosp North Ward,HCL NURSING,HNSI0001506,6112.65
Department of Health,Leicestershire Partnership NHS Trust,07/12/23,NURSE - BAND 5 - AGENCY,H&B Comm Hosp North Ward,HCL NURSING,HNSI0001506,2312.15
Department of Health,Leicestershire Partnership NHS Trust,07/12/23,NURSE - BAND 2 - AGENCY,Lough Swithland Ward,HCL NURSING,HNSI0001506,4322.33
Department of Health,Leicestershire Partnership NHS Trust,07/12/23,NURSE - BAND 5 - AGENCY,Lough Swithland Ward,HCL NURSING,HNSI0001506,1483.25
Department of Health,Leicestershire Partnership NHS Trust,07/12/23,NURSE - BAND 2 - AGENCY,Loughborough Charnwood Ward,HCL NURSING,HNSI0001506,5012.87
Department of Health,Leicestershire Partnership NHS Trust,07/12/23,NURSE - BAND 5 - AGENCY,Loughborough Charnwood Ward,HCL NURSING,HNSI0001506,7241.84
Department of Health,Leicestershire Partnership NHS Trust,07/12/23,NURSE - BAND 2 - AGENCY,Rutland Ward Nursing,HCL NURSING,HNSI0001506,3114.84
Department of Health,Leicestershire Partnership NHS Trust,07/12/23,NURSE - BAND 5 - AGENCY,Rutland Ward Nursing,HCL NURSING,HNSI0001506,2731.51
Department of Health,Leicestershire Partnership NHS Trust,07/12/23,NURSE - BAND 2 - AGENCY,St Lukes Stroke Ward,HCL NURSING,HNSI0001506,5615.87
Department of Health,Leicestershire Partnership NHS Trust,07/12/23,NURSE - BAND 5 - AGENCY,St Lukes Stroke Ward,HCL NURSING,HNSI0001506,4622.76
Department of Health,Leicestershire Partnership NHS Trust,07/12/23,NURSE - BAND 2 - AGENCY,St Lukes Ward 3,HCL NURSING,HNSI0001506,3018.89
Department of Health,Leicestershire Partnership NHS Trust,07/12/23,NURSE - BAND 5 - AGENCY,St Lukes Ward 3,HCL NURSING,HNSI0001506,2538.27
Department of Health,Leicestershire Partnership NHS Trust,07/12/23,NURSE - BAND 5 - AGENCY,West Planned Care  - Charnwood Hub,HCL NURSING,HNSI0001506,4576.49
Department of Health,Leicestershire Partnership NHS Trust,07/12/23,NURSE - BAND 5 - AGENCY,West Planned Care  - Hinckley Hub,HCL NURSING,HNSI0001506,4288.57
Department of Health,Leicestershire Partnership NHS Trust,07/12/23,NURSE - BAND 2 - AGENCY,Beechwood Ward,HCL NURSING,HNSI0001510,6636.12
Department of Health,Leicestershire Partnership NHS Trust,07/12/23,NURSE - BAND 5 - AGENCY,Beechwood Ward,HCL NURSING,HNSI0001510,3779.76
Department of Health,Leicestershire Partnership NHS Trust,07/12/23,NURSE - BAND 5 - AGENCY,City Planned Care - East,HCL NURSING,HNSI0001510,22923.03
Department of Health,Leicestershire Partnership NHS Trust,07/12/23,NURSE - BAND 5 - AGENCY,City Planned Care - West,HCL NURSING,HNSI0001510,19140.58
Department of Health,Leicestershire Partnership NHS Trust,07/12/23,NURSE - BAND 2 - AGENCY,Clarendon Ward,HCL NURSING,HNSI0001510,2713.95
Department of Health,Leicestershire Partnership NHS Trust,07/12/23,NURSE - BAND 5 - AGENCY,Clarendon Ward,HCL NURSING,HNSI0001510,1077.21
Department of Health,Leicestershire Partnership NHS Trust,07/12/23,NURSE - BAND 2 - AGENCY,Coalville Snibston Ward,HCL NURSING,HNSI0001510,2902.37
Department of Health,Leicestershire Partnership NHS Trust,07/12/23,NURSE - BAND 5 - AGENCY,Coalville Snibston Ward,HCL NURSING,HNSI0001510,1362.30
Department of Health,Leicestershire Partnership NHS Trust,07/12/23,NURSE - BAND 2 - AGENCY,Coalville Ward 2,HCL NURSING,HNSI0001510,9172.42
Department of Health,Leicestershire Partnership NHS Trust,07/12/23,NURSE - BAND 5 - AGENCY,Coalville Ward 2,HCL NURSING,HNSI0001510,1021.39
Department of Health,Leicestershire Partnership NHS Trust,07/12/23,NURSE - BAND 2 - AGENCY,Dalgliesh Ward,HCL NURSING,HNSI0001510,12316.34
Department of Health,Leicestershire Partnership NHS Trust,07/12/23,NURSE - BAND 5 - AGENCY,"East Planned Care - Melton,Syston,Rutland",HCL NURSING,HNSI0001510,4067.68
Department of Health,Leicestershire Partnership NHS Trust,07/12/23,NURSE - BAND 5 - AGENCY,"East Planned Care - Oadby,Wigston & Harborough",HCL NURSING,HNSI0001510,5333.21
Department of Health,Leicestershire Partnership NHS Trust,07/12/23,NURSE - BAND 2 - AGENCY,H&B Comm Hosp East Ward,HCL NURSING,HNSI0001510,7899.12
Department of Health,Leicestershire Partnership NHS Trust,07/12/23,NURSE - BAND 5 - AGENCY,H&B Comm Hosp East Ward,HCL NURSING,HNSI0001510,3592.67
Department of Health,Leicestershire Partnership NHS Trust,07/12/23,NURSE - BAND 2 - AGENCY,H&B Comm Hosp North Ward,HCL NURSING,HNSI0001510,2434.01
Department of Health,Leicestershire Partnership NHS Trust,07/12/23,NURSE - BAND 5 - AGENCY,H&B Comm Hosp North Ward,HCL NURSING,HNSI0001510,2281.77
Department of Health,Leicestershire Partnership NHS Trust,07/12/23,NURSE - BAND 2 - AGENCY,Lough Swithland Ward,HCL NURSING,HNSI0001510,4725.17
Department of Health,Leicestershire Partnership NHS Trust,07/12/23,NURSE - BAND 5 - AGENCY,Lough Swithland Ward,HCL NURSING,HNSI0001510,2327.15
Department of Health,Leicestershire Partnership NHS Trust,07/12/23,NURSE - BAND 2 - AGENCY,Loughborough Charnwood Ward,HCL NURSING,HNSI0001510,5423.64
Department of Health,Leicestershire Partnership NHS Trust,07/12/23,NURSE - BAND 5 - AGENCY,Loughborough Charnwood Ward,HCL NURSING,HNSI0001510,8041.61
Department of Health,Leicestershire Partnership NHS Trust,07/12/23,NURSE - BAND 2 - AGENCY,Rutland Ward Nursing,HCL NURSING,HNSI0001510,4473.23
Department of Health,Leicestershire Partnership NHS Trust,07/12/23,NURSE - BAND 5 - AGENCY,Rutland Ward Nursing,HCL NURSING,HNSI0001510,3289.13
Department of Health,Leicestershire Partnership NHS Trust,07/12/23,NURSE - BAND 2 - AGENCY,St Lukes Stroke Ward,HCL NURSING,HNSI0001510,9419.61
Department of Health,Leicestershire Partnership NHS Trust,07/12/23,NURSE - BAND 5 - AGENCY,St Lukes Stroke Ward,HCL NURSING,HNSI0001510,4370.01
Department of Health,Leicestershire Partnership NHS Trust,07/12/23,NURSE - BAND 2 - AGENCY,St Lukes Ward 3,HCL NURSING,HNSI0001510,3972.67
Department of Health,Leicestershire Partnership NHS Trust,07/12/23,NURSE - BAND 5 - AGENCY,St Lukes Ward 3,HCL NURSING,HNSI0001510,2522.30
Department of Health,Leicestershire Partnership NHS Trust,07/12/23,NURSE - BAND 5 - AGENCY,West Planned Care  - Charnwood Hub,HCL NURSING,HNSI0001510,3254.21
Department of Health,Leicestershire Partnership NHS Trust,07/12/23,NURSE - BAND 5 - AGENCY,West Planned Care  - Hinckley Hub,HCL NURSING,HNSI0001510,6464.17
Department of Health,Leicestershire Partnership NHS Trust,07/12/23,NURSE - BAND 2 - AGENCY,Beechwood Ward,HCL NURSING,HNSI0001514,6807.52
Department of Health,Leicestershire Partnership NHS Trust,07/12/23,NURSE - BAND 5 - AGENCY,Beechwood Ward,HCL NURSING,HNSI0001514,2858.63
Department of Health,Leicestershire Partnership NHS Trust,07/12/23,NURSE - BAND 5 - AGENCY,City Planned Care - East,HCL NURSING,HNSI0001514,36108.51
Department of Health,Leicestershire Partnership NHS Trust,07/12/23,NURSE - BAND 5 - AGENCY,City Planned Care - West,HCL NURSING,HNSI0001514,32656.66
Department of Health,Leicestershire Partnership NHS Trust,07/12/23,Nurse - Band 6 -Agency,City Planned Care - West,HCL NURSING,HNSI0001514,479.88
Department of Health,Leicestershire Partnership NHS Trust,07/12/23,NURSE - BAND 2 - AGENCY,Clarendon Ward,HCL NURSING,HNSI0001514,3073.50
Department of Health,Leicestershire Partnership NHS Trust,07/12/23,NURSE - BAND 5 - AGENCY,Clarendon Ward,HCL NURSING,HNSI0001514,1021.39
Department of Health,Leicestershire Partnership NHS Trust,07/12/23,NURSE - BAND 2 - AGENCY,Coalville Snibston Ward,HCL NURSING,HNSI0001514,3391.00
Department of Health,Leicestershire Partnership NHS Trust,07/12/23,NURSE - BAND 5 - AGENCY,Coalville Snibston Ward,HCL NURSING,HNSI0001514,1158.40
Department of Health,Leicestershire Partnership NHS Trust,07/12/23,NURSE - BAND 2 - AGENCY,Coalville Ward 2,HCL NURSING,HNSI0001514,7263.38
Department of Health,Leicestershire Partnership NHS Trust,07/12/23,NURSE - BAND 5 - AGENCY,Coalville Ward 2,HCL NURSING,HNSI0001514,386.05
Department of Health,Leicestershire Partnership NHS Trust,07/12/23,NURSE - BAND 2 - AGENCY,Dalgliesh Ward,HCL NURSING,HNSI0001514,5232.77
Department of Health,Leicestershire Partnership NHS Trust,07/12/23,NURSE - BAND 5 - AGENCY,Dalgliesh Ward,HCL NURSING,HNSI0001514,5400.03
Department of Health,Leicestershire Partnership NHS Trust,07/12/23,NURSE - BAND 5 - AGENCY,"East Planned Care - Melton,Syston,Rutland",HCL NURSING,HNSI0001514,7427.50
Department of Health,Leicestershire Partnership NHS Trust,07/12/23,NURSE - BAND 5 - AGENCY,"East Planned Care - Oadby,Wigston & Harborough",HCL NURSING,HNSI0001514,4189.43
Department of Health,Leicestershire Partnership NHS Trust,07/12/23,NURSE - BAND 2 - AGENCY,H&B Comm Hosp East Ward,HCL NURSING,HNSI0001514,13307.50
Department of Health,Leicestershire Partnership NHS Trust,07/12/23,NURSE - BAND 5 - AGENCY,H&B Comm Hosp East Ward,HCL NURSING,HNSI0001514,7832.34
Department of Health,Leicestershire Partnership NHS Trust,07/12/23,NURSE - BAND 2 - AGENCY,H&B Comm Hosp North Ward,HCL NURSING,HNSI0001514,4184.59
Department of Health,Leicestershire Partnership NHS Trust,07/12/23,NURSE - BAND 5 - AGENCY,H&B Comm Hosp North Ward,HCL NURSING,HNSI0001514,1384.60
Department of Health,Leicestershire Partnership NHS Trust,07/12/23,NURSE - BAND 2 - AGENCY,Lough Swithland Ward,HCL NURSING,HNSI0001514,1923.11
Department of Health,Leicestershire Partnership NHS Trust,07/12/23,NURSE - BAND 5 - AGENCY,Lough Swithland Ward,HCL NURSING,HNSI0001514,1918.26
Department of Health,Leicestershire Partnership NHS Trust,07/12/23,NURSE - BAND 2 - AGENCY,Loughborough Charnwood Ward,HCL NURSING,HNSI0001514,5749.64
Department of Health,Leicestershire Partnership NHS Trust,07/12/23,NURSE - BAND 5 - AGENCY,Loughborough Charnwood Ward,HCL NURSING,HNSI0001514,5865.60
Department of Health,Leicestershire Partnership NHS Trust,07/12/23,NURSE - BAND 2 - AGENCY,Rutland Ward Nursing,HCL NURSING,HNSI0001514,5419.63
Department of Health,Leicestershire Partnership NHS Trust,07/12/23,NURSE - BAND 5 - AGENCY,Rutland Ward Nursing,HCL NURSING,HNSI0001514,4154.28
Department of Health,Leicestershire Partnership NHS Trust,07/12/23,NURSE - BAND 2 - AGENCY,St Lukes Stroke Ward,HCL NURSING,HNSI0001514,8881.88
Department of Health,Leicestershire Partnership NHS Trust,07/12/23,NURSE - BAND 5 - AGENCY,St Lukes Stroke Ward,HCL NURSING,HNSI0001514,6772.77
Department of Health,Leicestershire Partnership NHS Trust,07/12/23,NURSE - BAND 2 - AGENCY,St Lukes Ward 3,HCL NURSING,HNSI0001514,2617.38
Department of Health,Leicestershire Partnership NHS Trust,07/12/23,NURSE - BAND 5 - AGENCY,St Lukes Ward 3,HCL NURSING,HNSI0001514,1104.14
Department of Health,Leicestershire Partnership NHS Trust,07/12/23,NURSE - BAND 5 - AGENCY,West Planned Care  - Charnwood Hub,HCL NURSING,HNSI0001514,4171.56
Department of Health,Leicestershire Partnership NHS Trust,07/12/23,NURSE - BAND 5 - AGENCY,West Planned Care  - Hinckley Hub,HCL NURSING,HNSI0001514,7304.88
Department of Health,Leicestershire Partnership NHS Trust,07/12/23,NURSE - BAND 5 - AGENCY,West Planned Care - NWL Hub,HCL NURSING,HNSI0001514,180.00
Department of Health,Leicestershire Partnership NHS Trust,08/12/23,WIP Project Not in BS - Buildings excl Dwellings,Work in Progress,TILBURY DOUGLAS CONSTRUCTION LTD,23120075,62699.14
Department of Health,Leicestershire Partnership NHS Trust,08/12/23,WIP Project Not in BS - Buildings excl Dwellings,Work in Progress,TILBURY DOUGLAS CONSTRUCTION LTD,23120076,47470.66
Department of Health,Leicestershire Partnership NHS Trust,08/12/23,WIP Project Not in BS - Buildings excl Dwellings,Work in Progress,TILBURY DOUGLAS CONSTRUCTION LTD,23120078,65382.82
Department of Health,Leicestershire Partnership NHS Trust,08/12/23,WIP Project Not in BS - Buildings excl Dwellings,Work in Progress,TILBURY DOUGLAS CONSTRUCTION LTD,23120079,176889.00
Department of Health,Leicestershire Partnership NHS Trust,08/12/23,WIP Project Not in BS - Buildings excl Dwellings,Work in Progress,TILBURY DOUGLAS CONSTRUCTION LTD,23120080,55444.61
Department of Health,Leicestershire Partnership NHS Trust,08/12/23,WIP Project Not in BS - Buildings excl Dwellings,Work in Progress,TILBURY DOUGLAS CONSTRUCTION LTD,23120085,31133.41
Department of Health,Leicestershire Partnership NHS Trust,08/12/23,WIP Project Not in BS - Buildings excl Dwellings,Work in Progress,TILBURY DOUGLAS CONSTRUCTION LTD,23120091,42386.64
Department of Health,Leicestershire Partnership NHS Trust,08/12/23,WIP Project Not in BS - Buildings excl Dwellings,Work in Progress,TILBURY DOUGLAS CONSTRUCTION LTD,23120093,46128.50
Department of Health,Leicestershire Partnership NHS Trust,08/12/23,WIP Project Not in BS - Buildings excl Dwellings,Work in Progress,TILBURY DOUGLAS CONSTRUCTION LTD,23120095,27406.68
Department of Health,Leicestershire Partnership NHS Trust,08/12/23,WIP Project Not in BS - Buildings excl Dwellings,Work in Progress,TILBURY DOUGLAS CONSTRUCTION LTD,23120096,54562.94
Department of Health,Leicestershire Partnership NHS Trust,08/12/23,Payroll Deductions -Home Electronics 86 Nov 23,Balance Sheet Collection,SME HCI LTD,149596,55808.20
Department of Health,Leicestershire Partnership NHS Trust,08/12/23,NURSE - BAND 2 - AGENCY,Beechwood Ward,HCL NURSING,HNSI0001522,6640.19
Department of Health,Leicestershire Partnership NHS Trust,08/12/23,NURSE - BAND 5 - AGENCY,Beechwood Ward,HCL NURSING,HNSI0001522,3906.52
Department of Health,Leicestershire Partnership NHS Trust,08/12/23,NURSE - BAND 5 - AGENCY,City Planned Care - East,HCL NURSING,HNSI0001522,30523.03
Department of Health,Leicestershire Partnership NHS Trust,08/12/23,NURSE - BAND 5 - AGENCY,City Planned Care - West,HCL NURSING,HNSI0001522,19404.99
Department of Health,Leicestershire Partnership NHS Trust,08/12/23,NURSE - BAND 2 - AGENCY,Clarendon Ward,HCL NURSING,HNSI0001522,2050.30
Department of Health,Leicestershire Partnership NHS Trust,08/12/23,NURSE - BAND 5 - AGENCY,Clarendon Ward,HCL NURSING,HNSI0001522,2955.89
Department of Health,Leicestershire Partnership NHS Trust,08/12/23,NURSE - BAND 2 - AGENCY,Coalville Snibston Ward,HCL NURSING,HNSI0001522,2998.79
Department of Health,Leicestershire Partnership NHS Trust,08/12/23,NURSE - BAND 5 - AGENCY,Coalville Snibston Ward,HCL NURSING,HNSI0001522,5068.67
Department of Health,Leicestershire Partnership NHS Trust,08/12/23,NURSE - BAND 2 - AGENCY,Coalville Ward 2,HCL NURSING,HNSI0001522,7106.46
Department of Health,Leicestershire Partnership NHS Trust,08/12/23,NURSE - BAND 5 - AGENCY,Coalville Ward 2,HCL NURSING,HNSI0001522,918.40
Department of Health,Leicestershire Partnership NHS Trust,08/12/23,NURSE - BAND 2 - AGENCY,Dalgliesh Ward,HCL NURSING,HNSI0001522,6693.86
Department of Health,Leicestershire Partnership NHS Trust,08/12/23,NURSE - BAND 5 - AGENCY,Dalgliesh Ward,HCL NURSING,HNSI0001522,6470.34
Department of Health,Leicestershire Partnership NHS Trust,08/12/23,NURSE - BAND 5 - AGENCY,"East Planned Care - Melton,Syston,Rutland",HCL NURSING,HNSI0001522,2230.11
Department of Health,Leicestershire Partnership NHS Trust,08/12/23,NURSE - BAND 5 - AGENCY,"East Planned Care - Oadby,Wigston & Harborough",HCL NURSING,HNSI0001522,5562.54
Department of Health,Leicestershire Partnership NHS Trust,08/12/23,NURSE - BAND 2 - AGENCY,H&B Comm Hosp East Ward,HCL NURSING,HNSI0001522,11419.67
Department of Health,Leicestershire Partnership NHS Trust,08/12/23,NURSE - BAND 5 - AGENCY,H&B Comm Hosp East Ward,HCL NURSING,HNSI0001522,10981.95
Department of Health,Leicestershire Partnership NHS Trust,08/12/23,NURSE - BAND 2 - AGENCY,H&B Comm Hosp North Ward,HCL NURSING,HNSI0001522,4793.52
Department of Health,Leicestershire Partnership NHS Trust,08/12/23,NURSE - BAND 5 - AGENCY,H&B Comm Hosp North Ward,HCL NURSING,HNSI0001522,823.18
Department of Health,Leicestershire Partnership NHS Trust,08/12/23,NURSE - BAND 2 - AGENCY,Lough Swithland Ward,HCL NURSING,HNSI0001522,4786.90
Department of Health,Leicestershire Partnership NHS Trust,08/12/23,NURSE - BAND 5 - AGENCY,Lough Swithland Ward,HCL NURSING,HNSI0001522,1884.89
Department of Health,Leicestershire Partnership NHS Trust,08/12/23,NURSE - BAND 2 - AGENCY,Loughborough Charnwood Ward,HCL NURSING,HNSI0001522,5730.63
Department of Health,Leicestershire Partnership NHS Trust,08/12/23,NURSE - BAND 5 - AGENCY,Loughborough Charnwood Ward,HCL NURSING,HNSI0001522,8388.83
Department of Health,Leicestershire Partnership NHS Trust,08/12/23,NURSE - BAND 2 - AGENCY,Rutland Ward Nursing,HCL NURSING,HNSI0001522,5412.32
Department of Health,Leicestershire Partnership NHS Trust,08/12/23,NURSE - BAND 5 - AGENCY,Rutland Ward Nursing,HCL NURSING,HNSI0001522,2435.32
Department of Health,Leicestershire Partnership NHS Trust,08/12/23,NURSE - BAND 2 - AGENCY,St Lukes Stroke Ward,HCL NURSING,HNSI0001522,6668.19
Department of Health,Leicestershire Partnership NHS Trust,08/12/23,NURSE - BAND 5 - AGENCY,St Lukes Stroke Ward,HCL NURSING,HNSI0001522,3681.96
Department of Health,Leicestershire Partnership NHS Trust,08/12/23,NURSE - BAND 2 - AGENCY,St Lukes Ward 3,HCL NURSING,HNSI0001522,3801.80
Department of Health,Leicestershire Partnership NHS Trust,08/12/23,NURSE - BAND 5 - AGENCY,St Lukes Ward 3,HCL NURSING,HNSI0001522,1537.18
Department of Health,Leicestershire Partnership NHS Trust,08/12/23,NURSE - BAND 5 - AGENCY,West Planned Care  - Charnwood Hub,HCL NURSING,HNSI0001522,2905.63
Department of Health,Leicestershire Partnership NHS Trust,08/12/23,NURSE - BAND 5 - AGENCY,West Planned Care  - Hinckley Hub,HCL NURSING,HNSI0001522,5086.31
Department of Health,Leicestershire Partnership NHS Trust,08/12/23,HR / Payroll Services,HR Employment Services,LINCOLNSHIRE PART NHSFT(RP7),L0001108,34400.00
Department of Health,Leicestershire Partnership NHS Trust,11/12/23,NURSE - BAND 2 - AGENCY,CAMHS Inpatient Service,HCL NURSING,HNSI0001523,6192.97
Department of Health,Leicestershire Partnership NHS Trust,11/12/23,NURSE - BAND 5 - AGENCY,CAMHS Inpatient Service,HCL NURSING,HNSI0001523,7644.10
Department of Health,Leicestershire Partnership NHS Trust,11/12/23,Nurse - Band 7 - Agency,CAMHS Waiting List Monies,HCL NURSING,HNSI0001523,2717.01
Department of Health,Leicestershire Partnership NHS Trust,11/12/23,Nurse - Band 7 - Agency,Crisis Response and Home Treatment,HCL NURSING,HNSI0001523,2752.25
Department of Health,Leicestershire Partnership NHS Trust,11/12/23,NURSE - BAND 2 - AGENCY,Welford Ward (Prev Langley),HCL NURSING,HNSI0001523,279.19
Department of Health,Leicestershire Partnership NHS Trust,11/12/23,NURSE - BAND 5 - AGENCY,Welford Ward (Prev Langley),HCL NURSING,HNSI0001523,3908.35
Department of Health,Leicestershire Partnership NHS Trust,11/12/23,Nurse - Band 6 -Agency,AMH - Central Access Point,HCL NURSING,HNSI0001521,2078.14
Department of Health,Leicestershire Partnership NHS Trust,11/12/23,Nurse - Band 6 -Agency,Adult County North West Leicestershire CMHT,HCL NURSING,HNSI0001521,813.17
Department of Health,Leicestershire Partnership NHS Trust,11/12/23,NURSE - BAND 2 - AGENCY,Agnes Unit,HCL NURSING,HNSI0001521,7907.19
Department of Health,Leicestershire Partnership NHS Trust,11/12/23,NURSE - BAND 5 - AGENCY,Agnes Unit,HCL NURSING,HNSI0001521,21457.78
Department of Health,Leicestershire Partnership NHS Trust,11/12/23,Nurse - Band 7 - Agency,Agnes Unit,HCL NURSING,HNSI0001521,1248.31
Department of Health,Leicestershire Partnership NHS Trust,11/12/23,NURSE - BAND 2 - AGENCY,Ashby Ward (Bradgate Unit),HCL NURSING,HNSI0001521,1302.25
Department of Health,Leicestershire Partnership NHS Trust,11/12/23,NURSE - BAND 5 - AGENCY,Ashby Ward (Bradgate Unit),HCL NURSING,HNSI0001521,11264.40
Department of Health,Leicestershire Partnership NHS Trust,11/12/23,NURSE - BAND 2 - AGENCY,Aston Ward Bradgate Unit (Prev Welford),HCL NURSING,HNSI0001521,205.84
Department of Health,Leicestershire Partnership NHS Trust,11/12/23,NURSE - BAND 2 - AGENCY,Beaumont Ward - Bradgate Unit,HCL NURSING,HNSI0001521,417.60
Department of Health,Leicestershire Partnership NHS Trust,11/12/23,NURSE - BAND 5 - AGENCY,Beaumont Ward - Bradgate Unit,HCL NURSING,HNSI0001521,6026.18
Department of Health,Leicestershire Partnership NHS Trust,11/12/23,NURSE - BAND 2 - AGENCY,Belvoir Psychiatric Intensive Care Unit,HCL NURSING,HNSI0001521,2675.95
Department of Health,Leicestershire Partnership NHS Trust,11/12/23,NURSE - BAND 5 - AGENCY,Belvoir Psychiatric Intensive Care Unit,HCL NURSING,HNSI0001521,5673.00
Department of Health,Leicestershire Partnership NHS Trust,11/12/23,NURSE - BAND 2 - AGENCY,Bosworth Ward - Bradgate Unit,HCL NURSING,HNSI0001521,3880.03
Department of Health,Leicestershire Partnership NHS Trust,11/12/23,NURSE - BAND 5 - AGENCY,Bosworth Ward - Bradgate Unit,HCL NURSING,HNSI0001521,2572.82
Department of Health,Leicestershire Partnership NHS Trust,11/12/23,NURSE - BAND 5 - AGENCY,Cedar (Willows),HCL NURSING,HNSI0001521,1870.85
Department of Health,Leicestershire Partnership NHS Trust,11/12/23,Nurse - Band 6 -Agency,City West CMHT MHSOP,HCL NURSING,HNSI0001521,1264.99
Department of Health,Leicestershire Partnership NHS Trust,11/12/23,NURSE - BAND 2 - AGENCY,Coleman Ward,HCL NURSING,HNSI0001521,699.98
Department of Health,Leicestershire Partnership NHS Trust,11/12/23,NURSE - BAND 5 - AGENCY,Coleman Ward,HCL NURSING,HNSI0001521,5547.77
Department of Health,Leicestershire Partnership NHS Trust,11/12/23,NURSE - BAND 5 - AGENCY,Crisis Resolution,HCL NURSING,HNSI0001521,1691.02
Department of Health,Leicestershire Partnership NHS Trust,11/12/23,NURSE - BAND 2 - AGENCY,Griffin Ward (HPC),HCL NURSING,HNSI0001521,1341.63
Department of Health,Leicestershire Partnership NHS Trust,11/12/23,NURSE - BAND 5 - AGENCY,Griffin Ward (HPC),HCL NURSING,HNSI0001521,6871.83
Department of Health,Leicestershire Partnership NHS Trust,11/12/23,NURSE - BAND 2 - AGENCY,Gwendolen Ward,HCL NURSING,HNSI0001521,1278.35
Department of Health,Leicestershire Partnership NHS Trust,11/12/23,NURSE - BAND 5 - AGENCY,Gwendolen Ward,HCL NURSING,HNSI0001521,3410.39
Department of Health,Leicestershire Partnership NHS Trust,11/12/23,NURSE - BAND 2 - AGENCY,Heather Ward,HCL NURSING,HNSI0001521,227.39
Department of Health,Leicestershire Partnership NHS Trust,11/12/23,NURSE - BAND 5 - AGENCY,Heather Ward,HCL NURSING,HNSI0001521,6276.82
Department of Health,Leicestershire Partnership NHS Trust,11/12/23,NURSE - BAND 2 - AGENCY,Kirby Ward,HCL NURSING,HNSI0001521,281.76
Department of Health,Leicestershire Partnership NHS Trust,11/12/23,NURSE - BAND 5 - AGENCY,Kirby Ward,HCL NURSING,HNSI0001521,2372.34
Department of Health,Leicestershire Partnership NHS Trust,11/12/23,NURSE - BAND 5 - AGENCY,Maple Ward,HCL NURSING,HNSI0001521,1014.74
Department of Health,Leicestershire Partnership NHS Trust,11/12/23,NURSE - BAND 2 - AGENCY,Mill Lodge,HCL NURSING,HNSI0001521,2717.47
Department of Health,Leicestershire Partnership NHS Trust,11/12/23,NURSE - BAND 5 - AGENCY,Mill Lodge,HCL NURSING,HNSI0001521,2294.19
Department of Health,Leicestershire Partnership NHS Trust,11/12/23,NURSE - BAND 2 - AGENCY,Phoenix Ward (HPC),HCL NURSING,HNSI0001521,814.67
Department of Health,Leicestershire Partnership NHS Trust,11/12/23,NURSE - BAND 5 - AGENCY,Phoenix Ward (HPC),HCL NURSING,HNSI0001521,1519.23
Department of Health,Leicestershire Partnership NHS Trust,11/12/23,NURSE - BAND 2 - AGENCY,Place Of Safety Assessment Unit,HCL NURSING,HNSI0001521,244.79
Department of Health,Leicestershire Partnership NHS Trust,11/12/23,NURSE - BAND 5 - AGENCY,Place Of Safety Assessment Unit,HCL NURSING,HNSI0001521,1935.83
Department of Health,Leicestershire Partnership NHS Trust,11/12/23,NURSE - BAND 5 - AGENCY,Sycamore (Willows),HCL NURSING,HNSI0001521,1600.38
Department of Health,Leicestershire Partnership NHS Trust,11/12/23,NURSE - BAND 5 - AGENCY,Thornton Ward - Bradgate Unit,HCL NURSING,HNSI0001521,437.47
Department of Health,Leicestershire Partnership NHS Trust,11/12/23,Computer Software,HIS External Recharge,BIG HAND,INV-BLTD-020776,25848.12
Department of Health,Leicestershire Partnership NHS Trust,11/12/23,Crs_NHS_LT1y -Resus Inventory Supplied.,Balance Sheet Collection,SUPPLY CHAIN CO LTD,1124243081,38624.19
Department of Health,Leicestershire Partnership NHS Trust,11/12/23,Electricity,Estates & Facilities Central,UHL NHS TRUST (RWE),L0276764,56255.76
Department of Health,Leicestershire Partnership NHS Trust,13/12/23,External Consultancy Fees,Leicester City CCG IT Recharge,NOTT UNI HOSP NHS TRUST (RX1),2000133307,129289.00
Department of Health,Leicestershire Partnership NHS Trust,13/12/23,Insurance Costs,Chief Executives Office,NHS LITIGATION AUTHORITY,SICX414455,226283.80
Department of Health,Leicestershire Partnership NHS Trust,13/12/23,Water & Sewerage Charges,"Beaumont Leys Health Centre (P94, LPT)",WATER PLUS,0865005329/INV04151993,159.11
Department of Health,Leicestershire Partnership NHS Trust,13/12/23,Water & Sewerage Charges,Bridge Park Road (Unit C18) (LPT),WATER PLUS,0865005329/INV04151993,34.97
Department of Health,Leicestershire Partnership NHS Trust,13/12/23,Water & Sewerage Charges,"Bridge Park Road - Units 2 and 3 (P148, LPT)",WATER PLUS,0865005329/INV04151993,342.86
Department of Health,Leicestershire Partnership NHS Trust,13/12/23,Water & Sewerage Charges,"Coalville Community Hospital (P138, LPT)",WATER PLUS,0865005329/INV04151993,6888.91
Department of Health,Leicestershire Partnership NHS Trust,13/12/23,Water & Sewerage Charges,"Coalville Health Centre (P121, LPT)",WATER PLUS,0865005329/INV04151993,280.47
Department of Health,Leicestershire Partnership NHS Trust,13/12/23,Water & Sewerage Charges,"Evington Centre (P6, LPT)",WATER PLUS,0865005329/INV04151993,1433.76
Department of Health,Leicestershire Partnership NHS Trust,13/12/23,Water & Sewerage Charges,"Feilding Palmer Hospital (Lutterworth) (P131, LPT)",WATER PLUS,0865005329/INV04151993,35.28
Department of Health,Leicestershire Partnership NHS Trust,13/12/23,Water & Sewerage Charges,HIS,WATER PLUS,0865005329/INV04151993,81.24
Department of Health,Leicestershire Partnership NHS Trust,13/12/23,Water & Sewerage Charges,Hinckley & District Hospital (PROPCO),WATER PLUS,0865005329/INV04151993,55.59
Department of Health,Leicestershire Partnership NHS Trust,13/12/23,Water & Sewerage Charges,"Hinckley and Bosworth Community Hospital (Sunnyside) (P133, LPT)",WATER PLUS,0865005329/INV04151993,1787.04
Department of Health,Leicestershire Partnership NHS Trust,13/12/23,Water & Sewerage Charges,"Hynca Lodge (P33, LPT)",WATER PLUS,0865005329/INV04151993,219.85
Department of Health,Leicestershire Partnership NHS Trust,13/12/23,Water & Sewerage Charges,Linnaeus Nursery - Cordelia Close,WATER PLUS,0865005329/INV04151993,43.08
Department of Health,Leicestershire Partnership NHS Trust,13/12/23,Water & Sewerage Charges,"Loughborough Hospital (P136, LPT)",WATER PLUS,0865005329/INV04151993,5598.94
Department of Health,Leicestershire Partnership NHS Trust,13/12/23,Water & Sewerage Charges,"Narborough Health Centre (P117, LPT)",WATER PLUS,0865005329/INV04151993,93.42
Department of Health,Leicestershire Partnership NHS Trust,13/12/23,Water & Sewerage Charges,"OSL House (P54, LPT)",WATER PLUS,0865005329/INV04151993,287.15
Department of Health,Leicestershire Partnership NHS Trust,13/12/23,Water & Sewerage Charges,"Orchard Resource Centre (P15, LPT)",WATER PLUS,0865005329/INV04151993,430.95
Department of Health,Leicestershire Partnership NHS Trust,13/12/23,Water & Sewerage Charges,"Prince Philip House (P96, LPT)",WATER PLUS,0865005329/INV04151993,359.51
Department of Health,Leicestershire Partnership NHS Trust,13/12/23,Water & Sewerage Charges,Rothesay -  London Road 352A (LPT),WATER PLUS,0865005329/INV04151993,312.65
Department of Health,Leicestershire Partnership NHS Trust,13/12/23,Water & Sewerage Charges,"Rutland Memorial Hospital (P134, LPT)",WATER PLUS,0865005329/INV04151993,3356.12
Department of Health,Leicestershire Partnership NHS Trust,13/12/23,Water & Sewerage Charges,"Shepshed Health Centre (P123, LPT)",WATER PLUS,0865005329/INV04151993,490.43
Department of Health,Leicestershire Partnership NHS Trust,13/12/23,Water & Sewerage Charges,"Springfield Road Health Centre (P92, LPT)",WATER PLUS,0865005329/INV04151993,280.47
Department of Health,Leicestershire Partnership NHS Trust,13/12/23,Water & Sewerage Charges,"Stewart House (P61, LPT)",WATER PLUS,0865005329/INV04151993,1377.96
Department of Health,Leicestershire Partnership NHS Trust,13/12/23,Water & Sewerage Charges,"Swithland House - London Road 352 (P44, LPT)",WATER PLUS,0865005329/INV04151993,110.12
Department of Health,Leicestershire Partnership NHS Trust,13/12/23,Water & Sewerage Charges,"The Agnes Unit (AKA Assessment and Treatment Centre) (P85, LPT)",WATER PLUS,0865005329/INV04151993,1010.92
Department of Health,Leicestershire Partnership NHS Trust,13/12/23,Water & Sewerage Charges,"The Cedars (P19, LPT)",WATER PLUS,0865005329/INV04151993,208.17
Department of Health,Leicestershire Partnership NHS Trust,13/12/23,Water & Sewerage Charges,"The Grange 1 (P4, LPT)",WATER PLUS,0865005329/INV04151993,41.65
Department of Health,Leicestershire Partnership NHS Trust,13/12/23,Water & Sewerage Charges,"The Grange 2 (P41, LPT)",WATER PLUS,0865005329/INV04151993,68.37
Department of Health,Leicestershire Partnership NHS Trust,13/12/23,Water & Sewerage Charges,"The Willows - Cordelia Close (P22, LPT)",WATER PLUS,0865005329/INV04151993,1402.92
Department of Health,Leicestershire Partnership NHS Trust,13/12/23,Water & Sewerage Charges,Westcotes Group – Artemis House,WATER PLUS,0865005329/INV04151993,210.07
Department of Health,Leicestershire Partnership NHS Trust,13/12/23,Water & Sewerage Charges,"Coalville Community Hospital (P138, LPT)",WATER PLUS,0865005329/CRN00729607,-38182.15
Department of Health,Leicestershire Partnership NHS Trust,14/12/23,Services / Recharges from NHS Trusts,Inter Unit I & E Distribution,UHL NHS TRUST (RWE),L0276847,26315.95
Department of Health,Leicestershire Partnership NHS Trust,15/12/23,Network Costs - WAN Maint,HIS Infrastructure,VIRGIN MEDIA BUSINESS,262421-215,35695.32
Department of Health,Leicestershire Partnership NHS Trust,15/12/23,Med Trainees - FY1,Medical Trainees,UHL NHS TRUST (RWE),L0276910,30824.62
Department of Health,Leicestershire Partnership NHS Trust,15/12/23,Med Trainees - FY1,Medical Trainees,UHL NHS TRUST (RWE),L0276909,29836.57
Department of Health,Leicestershire Partnership NHS Trust,15/12/23,Services / Recharges from NHS Trusts,Inter Unit I & E Distribution,UHL NHS TRUST (RWE),L0276913,104969.45
Department of Health,Leicestershire Partnership NHS Trust,18/12/23,Catering - Patient - Food,"Bennion Centre (including Forest Grange Day Unit) (P8, LPT)",NH CASE LTD,W/C151223,2947.02
Department of Health,Leicestershire Partnership NHS Trust,18/12/23,Catering - Patient - Food,"Bradgate Unit (including Glenvale day Unit) (P7, LPT)",NH CASE LTD,W/C151223,6328.04
Department of Health,Leicestershire Partnership NHS Trust,18/12/23,Catering - Patient - Food,"Evington Centre (P6, LPT)",NH CASE LTD,W/C151223,5953.99
Department of Health,Leicestershire Partnership NHS Trust,18/12/23,Catering - Patient - Food,"Herschel Prins (P9, LPT)",NH CASE LTD,W/C151223,1487.13
Department of Health,Leicestershire Partnership NHS Trust,18/12/23,Catering - Patient - Food,"Hinckley and Bosworth Community Hospital (Sunnyside) (P133, LPT)",NH CASE LTD,W/C151223,1759.00
Department of Health,Leicestershire Partnership NHS Trust,18/12/23,Catering - Patient - Food,"Loughborough Hospital (P136, LPT)",NH CASE LTD,W/C151223,1187.56
Department of Health,Leicestershire Partnership NHS Trust,18/12/23,Catering - Patient - Food,"Rutland Memorial Hospital (P134, LPT)",NH CASE LTD,W/C151223,1361.29
Department of Health,Leicestershire Partnership NHS Trust,18/12/23,Catering - Patient - Food,"Stewart House (P61, LPT)",NH CASE LTD,W/C151223,2405.75
Department of Health,Leicestershire Partnership NHS Trust,18/12/23,Catering - Patient - Food,"The Agnes Unit (AKA Assessment and Treatment Centre) (P85, LPT)",NH CASE LTD,W/C151223,659.73
Department of Health,Leicestershire Partnership NHS Trust,18/12/23,Catering - Patient - Food,The Beacon,NH CASE LTD,W/C151223,928.65
Department of Health,Leicestershire Partnership NHS Trust,18/12/23,Catering - Patient - Food,"The Willows - Cordelia Close (P22, LPT)",NH CASE LTD,W/C151223,1907.22
Department of Health,Leicestershire Partnership NHS Trust,18/12/23,Services / Recharges from NHS Trusts,Inter Unit I & E Distribution,UHL NHS TRUST (RWE),L0276916,36070.98
Department of Health,Leicestershire Partnership NHS Trust,18/12/23,Crs_NHS_LT1y -Resus Inventory Supplied.,Balance Sheet Collection,SUPPLY CHAIN CO LTD,1124250161,43891.24
Department of Health,Leicestershire Partnership NHS Trust,18/12/23,Computer License  Fees,Finance Department,VERSION 1,INVSOL020090,39367.20
Department of Health,Leicestershire Partnership NHS Trust,19/12/23,Furniture & Fittings,DMH Management,PINEAPPLE CONTRACTS,SI/89944,116188.80
Department of Health,Leicestershire Partnership NHS Trust,19/12/23,Printing Costs,Estates & Facilities Central,LEXMARK INTERNATIONAL LTD,900650307267,28069.03
Department of Health,Leicestershire Partnership NHS Trust,19/12/23,Med GP Trainees,Medical Trainees,MWL TEACHING HOSPITALS NHS TRUST,16827047,75000.00
Department of Health,Leicestershire Partnership NHS Trust,19/12/23,Gas,"Beaumont Leys Health Centre (P94, LPT)",TOTAL GAS & POWER LTD,324174361/23,1759.93
Department of Health,Leicestershire Partnership NHS Trust,19/12/23,Gas,"Bennion Centre (including Forest Grange Day Unit) (P8, LPT)",TOTAL GAS & POWER LTD,324174361/23,20797.66
Department of Health,Leicestershire Partnership NHS Trust,19/12/23,Gas,"Bradgate Unit (including Glenvale day Unit) (P7, LPT)",TOTAL GAS & POWER LTD,324174361/23,41384.33
Department of Health,Leicestershire Partnership NHS Trust,19/12/23,Gas,Bridge Park Plaza - First Floor (LPT),TOTAL GAS & POWER LTD,324174361/23,3786.08
Department of Health,Leicestershire Partnership NHS Trust,19/12/23,Gas,"Bridge Park Road - Units 2 and 3 (P148, LPT)",TOTAL GAS & POWER LTD,324174361/23,597.59
Department of Health,Leicestershire Partnership NHS Trust,19/12/23,Gas,"Coalville Community Hospital (P138, LPT)",TOTAL GAS & POWER LTD,324174361/23,22815.00
Department of Health,Leicestershire Partnership NHS Trust,19/12/23,Gas,"Coalville Health Centre (P121, LPT)",TOTAL GAS & POWER LTD,324174361/23,1961.38
Department of Health,Leicestershire Partnership NHS Trust,19/12/23,Gas,"Evington Centre (P6, LPT)",TOTAL GAS & POWER LTD,324174361/23,3499.84
Department of Health,Leicestershire Partnership NHS Trust,19/12/23,Gas,"Farm Lodge (P34, LPT)",TOTAL GAS & POWER LTD,324174361/23,379.65
Department of Health,Leicestershire Partnership NHS Trust,19/12/23,Gas,"Feilding Palmer Hospital (Lutterworth) (P131, LPT)",TOTAL GAS & POWER LTD,324174361/23,4793.42
Department of Health,Leicestershire Partnership NHS Trust,19/12/23,Gas,"Frith Cottages 3 & 4 (P36, LPT)",TOTAL GAS & POWER LTD,324174361/23,452.81
Department of Health,Leicestershire Partnership NHS Trust,19/12/23,Gas,HIS,TOTAL GAS & POWER LTD,324174361/23,642.83
Department of Health,Leicestershire Partnership NHS Trust,19/12/23,Gas,"Hawthorne Centre - Coalville (P14, LPT)",TOTAL GAS & POWER LTD,324174361/23,1367.94
Department of Health,Leicestershire Partnership NHS Trust,19/12/23,Gas,"Hinckley and Bosworth Community Hospital (Sunnyside) (P133, LPT)",TOTAL GAS & POWER LTD,324174361/23,18058.80
Department of Health,Leicestershire Partnership NHS Trust,19/12/23,Gas,"Hynca Lodge (P33, LPT)",TOTAL GAS & POWER LTD,324174361/23,1283.62
Department of Health,Leicestershire Partnership NHS Trust,19/12/23,Gas,"LGH - Gwendolen House (P4, LPT)",TOTAL GAS & POWER LTD,324174361/23,4620.30
Department of Health,Leicestershire Partnership NHS Trust,19/12/23,Gas,"Loughborough Hospital (P136, LPT)",TOTAL GAS & POWER LTD,324174361/23,46798.80
Department of Health,Leicestershire Partnership NHS Trust,19/12/23,Gas,Mawson House (LPT),TOTAL GAS & POWER LTD,324174361/23,1680.80
Department of Health,Leicestershire Partnership NHS Trust,19/12/23,Gas,"Mett Centre (P49, LPT)",TOTAL GAS & POWER LTD,324174361/23,859.63
Department of Health,Leicestershire Partnership NHS Trust,19/12/23,Gas,"Narborough Health Centre (P117, LPT)",TOTAL GAS & POWER LTD,324174361/23,1565.87
Department of Health,Leicestershire Partnership NHS Trust,19/12/23,Gas,"Neville Centre - LGH (was DSC) (P147, LPT)",TOTAL GAS & POWER LTD,324174361/23,3069.60
Department of Health,Leicestershire Partnership NHS Trust,19/12/23,Gas,"OSL House (P54, LPT)",TOTAL GAS & POWER LTD,324174361/23,2030.92
Department of Health,Leicestershire Partnership NHS Trust,19/12/23,Gas,"Orchard Resource Centre (P15, LPT)",TOTAL GAS & POWER LTD,324174361/23,1706.58
Department of Health,Leicestershire Partnership NHS Trust,19/12/23,Gas,"Rutland Memorial Hospital (P134, LPT)",TOTAL GAS & POWER LTD,324174361/23,363.51
Department of Health,Leicestershire Partnership NHS Trust,19/12/23,Gas,"Shepshed Health Centre (P123, LPT)",TOTAL GAS & POWER LTD,324174361/23,1827.12
Department of Health,Leicestershire Partnership NHS Trust,19/12/23,Gas,"Springfield Road Health Centre (P92, LPT)",TOTAL GAS & POWER LTD,324174361/23,1597.55
Department of Health,Leicestershire Partnership NHS Trust,19/12/23,Gas,"Stewart House (P61, LPT)",TOTAL GAS & POWER LTD,324174361/23,10401.54
Department of Health,Leicestershire Partnership NHS Trust,19/12/23,Gas,"Swithland House - London Road 352 (P44, LPT)",TOTAL GAS & POWER LTD,324174361/23,2808.02
Department of Health,Leicestershire Partnership NHS Trust,19/12/23,Gas,"The Agnes Unit (AKA Assessment and Treatment Centre) (P85, LPT)",TOTAL GAS & POWER LTD,324174361/23,12086.65
Department of Health,Leicestershire Partnership NHS Trust,19/12/23,Gas,The Beacon,TOTAL GAS & POWER LTD,324174361/23,3849.37
Department of Health,Leicestershire Partnership NHS Trust,19/12/23,Gas,"The Cedars (P19, LPT)",TOTAL GAS & POWER LTD,324174361/23,900.76
Department of Health,Leicestershire Partnership NHS Trust,19/12/23,Gas,"The Grange 1 (P4, LPT)",TOTAL GAS & POWER LTD,324174361/23,823.66
Department of Health,Leicestershire Partnership NHS Trust,19/12/23,Gas,"The Grange 2 (P41, LPT)",TOTAL GAS & POWER LTD,324174361/23,575.70
Department of Health,Leicestershire Partnership NHS Trust,19/12/23,Gas,"The Willows - Cordelia Close (P22, LPT)",TOTAL GAS & POWER LTD,324174361/23,8626.36
Department of Health,Leicestershire Partnership NHS Trust,19/12/23,Gas,"Valentine Centre (P3, LPT)",TOTAL GAS & POWER LTD,324174361/23,5169.08
Department of Health,Leicestershire Partnership NHS Trust,19/12/23,Gas,"Westcotes Group -Westcotes House (P78, LPT)",TOTAL GAS & POWER LTD,324174361/23,2670.53
Department of Health,Leicestershire Partnership NHS Trust,19/12/23,Gas,"Winstanley Drive Health Centre (P8, LPT)",TOTAL GAS & POWER LTD,324174361/23,1610.22
Department of Health,Leicestershire Partnership NHS Trust,20/12/23,CHP Estates Management,Merlyn Vaz Centre (CHP),COMM HLTH PARTNERSHIPS LTD,0060325247,88383.68
Department of Health,Leicestershire Partnership NHS Trust,20/12/23,CHP Estates Management,Westcotes Health Centre (CHP),COMM HLTH PARTNERSHIPS LTD,0060325249,39151.59
Department of Health,Leicestershire Partnership NHS Trust,21/12/23,Computer EquipmentMaintenance,HIS,CLINISYS SOL LTD,INV34212301980,33888.65
Department of Health,Leicestershire Partnership NHS Trust,21/12/23,Services / Recharges from NHS Commissioners,AED Step up Service,NORTHAMPTONSHIRE HC NHS FT (RP1),5154885,35113.00
Department of Health,Leicestershire Partnership NHS Trust,21/12/23,Landline Telephone Rental / Calls,"Beaumont Leys Health Centre (P94, LPT)",VIRGIN MEDIA BUSINESS,853083001/004/1223,355.34
Department of Health,Leicestershire Partnership NHS Trust,21/12/23,Landline Telephone Rental / Calls,"Bennion Centre (including Forest Grange Day Unit) (P8, LPT)",VIRGIN MEDIA BUSINESS,853083001/004/1223,8.77
Department of Health,Leicestershire Partnership NHS Trust,21/12/23,Landline Telephone Rental / Calls,"Bradgate Unit (including Glenvale day Unit) (P7, LPT)",VIRGIN MEDIA BUSINESS,853083001/004/1223,5939.23
Department of Health,Leicestershire Partnership NHS Trust,21/12/23,Landline Telephone Rental / Calls,Braunstone Health and Social Care Centre (Part) (PROPCO),VIRGIN MEDIA BUSINESS,853083001/004/1223,1107.82
Department of Health,Leicestershire Partnership NHS Trust,21/12/23,Landline Telephone Rental / Calls,Bridge Park Plaza - First Floor (LPT),VIRGIN MEDIA BUSINESS,853083001/004/1223,3324.68
Department of Health,Leicestershire Partnership NHS Trust,21/12/23,Landline Telephone Rental / Calls,"Coalville Community Hospital (P138, LPT)",VIRGIN MEDIA BUSINESS,853083001/004/1223,85.14
Department of Health,Leicestershire Partnership NHS Trust,21/12/23,Landline Telephone Rental / Calls,"Coalville Health Centre (P121, LPT)",VIRGIN MEDIA BUSINESS,853083001/004/1223,126.48
Department of Health,Leicestershire Partnership NHS Trust,21/12/23,Landline Telephone Rental / Calls,County Hall,VIRGIN MEDIA BUSINESS,853083001/004/1223,1499.66
Department of Health,Leicestershire Partnership NHS Trust,21/12/23,Landline Telephone Rental / Calls,Estates & Facilities Central,VIRGIN MEDIA BUSINESS,853083001/004/1223,5.93
Department of Health,Leicestershire Partnership NHS Trust,21/12/23,Landline Telephone Rental / Calls,"Evington Centre (P6, LPT)",VIRGIN MEDIA BUSINESS,853083001/004/1223,204.06
Department of Health,Leicestershire Partnership NHS Trust,21/12/23,Landline Telephone Rental / Calls,HIS,VIRGIN MEDIA BUSINESS,853083001/004/1223,2867.09
Department of Health,Leicestershire Partnership NHS Trust,21/12/23,Landline Telephone Rental / Calls,"Hawthorne Centre - Coalville (P14, LPT)",VIRGIN MEDIA BUSINESS,853083001/004/1223,-104.83
Department of Health,Leicestershire Partnership NHS Trust,21/12/23,Landline Telephone Rental / Calls,"Hinckley and Bosworth Community Hospital (Sunnyside) (P133, LPT)",VIRGIN MEDIA BUSINESS,853083001/004/1223,958.00
Department of Health,Leicestershire Partnership NHS Trust,21/12/23,Landline Telephone Rental / Calls,"Hynca Lodge (P33, LPT)",VIRGIN MEDIA BUSINESS,853083001/004/1223,431.77
Department of Health,Leicestershire Partnership NHS Trust,21/12/23,Landline Telephone Rental / Calls,"Legion House, Ashby",VIRGIN MEDIA BUSINESS,853083001/004/1223,24.22
Department of Health,Leicestershire Partnership NHS Trust,21/12/23,Landline Telephone Rental / Calls,"Loughborough Hospital (P136, LPT)",VIRGIN MEDIA BUSINESS,853083001/004/1223,4556.58
Department of Health,Leicestershire Partnership NHS Trust,21/12/23,Landline Telephone Rental / Calls,Mawson House (LPT),VIRGIN MEDIA BUSINESS,853083001/004/1223,444.71
Department of Health,Leicestershire Partnership NHS Trust,21/12/23,Landline Telephone Rental / Calls,Merlyn Vaz Centre (CHP),VIRGIN MEDIA BUSINESS,853083001/004/1223,1333.68
Department of Health,Leicestershire Partnership NHS Trust,21/12/23,Landline Telephone Rental / Calls,"Mett Centre (P49, LPT)",VIRGIN MEDIA BUSINESS,853083001/004/1223,109.12
Department of Health,Leicestershire Partnership NHS Trust,21/12/23,Landline Telephone Rental / Calls,NSPCC Training Cente,VIRGIN MEDIA BUSINESS,853083001/004/1223,-218.62
Department of Health,Leicestershire Partnership NHS Trust,21/12/23,Landline Telephone Rental / Calls,New Parks Health Centre (PROPCO),VIRGIN MEDIA BUSINESS,853083001/004/1223,1559.34
Department of Health,Leicestershire Partnership NHS Trust,21/12/23,Landline Telephone Rental / Calls,"OSL House (P54, LPT)",VIRGIN MEDIA BUSINESS,853083001/004/1223,905.03
Department of Health,Leicestershire Partnership NHS Trust,21/12/23,Landline Telephone Rental / Calls,"Orchard Resource Centre (P15, LPT)",VIRGIN MEDIA BUSINESS,853083001/004/1223,541.16
Department of Health,Leicestershire Partnership NHS Trust,21/12/23,Landline Telephone Rental / Calls,Pasley Road Health Centre (PROPCO),VIRGIN MEDIA BUSINESS,853083001/004/1223,140.84
Department of Health,Leicestershire Partnership NHS Trust,21/12/23,Landline Telephone Rental / Calls,"Prince Philip House (P96, LPT)",VIRGIN MEDIA BUSINESS,853083001/004/1223,1236.30
Department of Health,Leicestershire Partnership NHS Trust,21/12/23,Landline Telephone Rental / Calls,Rushey Mead Health Centre (PROPCO),VIRGIN MEDIA BUSINESS,853083001/004/1223,70.86
Department of Health,Leicestershire Partnership NHS Trust,21/12/23,Landline Telephone Rental / Calls,"Springfield Road Health Centre (P92, LPT)",VIRGIN MEDIA BUSINESS,853083001/004/1223,363.08
Department of Health,Leicestershire Partnership NHS Trust,21/12/23,Landline Telephone Rental / Calls,"St Peters Health Center (Part 1st and 2nd floors) (P66, LPT)",VIRGIN MEDIA BUSINESS,853083001/004/1223,1438.60
Department of Health,Leicestershire Partnership NHS Trust,21/12/23,Landline Telephone Rental / Calls,"Swithland House - London Road 352 (P44, LPT)",VIRGIN MEDIA BUSINESS,853083001/004/1223,226.27
Department of Health,Leicestershire Partnership NHS Trust,21/12/23,Landline Telephone Rental / Calls,"The Cedars (P19, LPT)",VIRGIN MEDIA BUSINESS,853083001/004/1223,709.00
Department of Health,Leicestershire Partnership NHS Trust,21/12/23,Landline Telephone Rental / Calls,"The Willows - Cordelia Close (P22, LPT)",VIRGIN MEDIA BUSINESS,853083001/004/1223,33.53
Department of Health,Leicestershire Partnership NHS Trust,21/12/23,Landline Telephone Rental / Calls,"Valentine Centre (P3, LPT)",VIRGIN MEDIA BUSINESS,853083001/004/1223,549.62
Department of Health,Leicestershire Partnership NHS Trust,21/12/23,Landline Telephone Rental / Calls,Warren Park Way 25 (PROPCO),VIRGIN MEDIA BUSINESS,853083001/004/1223,783.76
Department of Health,Leicestershire Partnership NHS Trust,21/12/23,Landline Telephone Rental / Calls,"Westcotes Group -Westcotes House (P78, LPT)",VIRGIN MEDIA BUSINESS,853083001/004/1223,823.75
Department of Health,Leicestershire Partnership NHS Trust,21/12/23,Landline Telephone Rental / Calls,"Winstanley Drive Health Centre (P8, LPT)",VIRGIN MEDIA BUSINESS,853083001/004/1223,46.44
